Cogmind - Beta 10.2 @@@ ROGUE MODE // 2021.07.20 @ 17:46:59 Player: Burgers_Lettuce Result: Destroyed by Y-54 Guardian with Flak Gun Performance ------------- Evolutions (3) 1500 Regions Visited (8) 1600 Robots Destroyed (44) 220 Value Destroyed (1466) 1466 Prototype IDs (4) 80 Alien Tech Used (0) 0 Bonus (496) 496 TOTAL SCORE: 5362 Bonus ------- High Alert Combat Kills 61 Follower Combat Kills 135 Aligned with FarCom 300 Cogmind --------- Core Integrity 0/700 Matter 186/300 Energy 100/100 System Corruption 5% Temperature Cool (6) Movement Core (50) Location -7/Factory Parts ------- > --- POWER (1) -------- (None) > --- PROPULSION (4) --- (None) > --- UTILITY (5) ------ (None) > --- WEAPON (3) ------- (None) > --- INVENTORY (4) ---- Long-range Sensor Array Transmission Jammer Improved Shield Generator Shock Rifle Peak State ------------ > --- POWER ------------ Nuclear Core > --- PROPULSION ------- Advanced Treads Advanced Treads Compact Wheel Compact Wheel > --- UTILITY ---------- Small Storage Unit 0b10 Alert Chip Transmission Jammer Hacking Suite Hacking Suite > --- WEAPON ----------- YOLO Cannon Gauss Cannon > --- INVENTORY -------- Light Deuterium Engine Weight Redist. System Heavy EM Pulse Gun Shock Rifle Gatling Laser Great Maul [Rating: 52] Favorites ----------- Power Nuclear Core Engine Ion Engine Power Core Nuclear Core Propulsion Light Treads Treads Light Treads Leg Improved Aluminum Leg Wheel Compact Wheel Hover Unit Airjet Flight Unit Cesium-ion Thruster Utility Hacking Suite Device Transmission Jammer Storage Small Storage Unit Processor 0b10 Alert Chip Hackware Hacking Suite Protection Light Armor Plating Weapon Guided Plasma Cannon Energy Gun Medium Laser Energy Cannon Guided Plasma Cannon Ballistic Gun Heavy Battle Rifle Ballistic Cannon Gauss Cannon Launcher Heavy Missile Launcher Special Weapon Remote Datajack Build | -11 -10 -10 -10 -9 -8 -7 -7 -7 ------- Run | Scr Mat Min Exi Min Mat Fac Was Fac Slots Evolved 6 | . . . . . 4 2 . . Power . | . . . . . . . . . Propulsion 2 | . . . . . 1 1 . . Utility 3 | . . . . . 2 1 . . Weapon 1 | . . . . . 1 . . . Parts Attached 76 | 6 11 1 7 5 20 13 . 13 Power 8 | 1 1 1 1 1 1 1 . 1 Engine 4 | 1 1 . . . . 1 . 1 Core 4 | . . 1 1 1 1 . . . Reactor . | . . . . . . . . . Propulsion 19 | 2 1 . 1 . 7 5 . 3 Treads 9 | 1 . . 1 . 4 3 . . Leg 1 | . . . . . . . . 1 Wheel 6 | 1 1 . . . 3 1 . . Hover 1 | . . . . . . . . 1 Flight 2 | . . . . . . 1 . 1 Utility 21 | 1 2 . 3 . 6 4 . 5 Device 9 | . 1 . . . 3 2 . 3 Storage 4 | 1 . . 2 . . 1 . . Processor 5 | . . . 1 . 2 . . 2 Hackware 2 | . . . . . 1 1 . . Protection 1 | . 1 . . . . . . . Artifact . | . . . . . . . . . Weapon 28 | 2 7 . 2 4 6 3 . 4 Energy Gun 9 | 1 3 . . 1 2 1 . 1 Energy Cannon 4 | . . . 1 1 1 1 . . Ballistic Gun 10 | 1 4 . 1 2 . 1 . 1 Ballistic Cannon 3 | . . . . . 3 . . . Launcher 1 | . . . . . . . . 1 Special Weapon 1 | . . . . . . . . 1 Impact Weapon . | . . . . . . . . . Slashing Weapon . | . . . . . . . . . Piercing Weapon . | . . . . . . . . . Special Melee Weapon . | . . . . . . . . . Unidentified Prototypes 4 | . . . 2 . 1 . . 1 Parts Lost 24 | . 2 . . 3 . 2 5 12 Power 6 | . 1 . . 1 . 1 1 2 Propulsion 7 | . . . . 1 . . 2 4 Utility 6 | . . . . . . . 2 4 Weapon 5 | . 1 . . 1 . 1 . 2 Highest Loss Streak 9 | . 1 . . 2 . 1 5 9 Average Slot Usage (%) 81 | . 91 100 99 83 93 90 72 39 Engine 2 | . 12 3 . . . 2 5 2 Core 5 | . . 10 13 8 9 2 . . Treads 11 | . 14 14 14 14 16 15 11 . Wheel 9 | . 14 14 14 7 9 13 5 . Device 6 | . 3 14 10 . 7 8 13 5 Storage 8 | . 14 14 14 14 9 6 . . Processor 7 | . . . 3 14 10 7 6 8 Hackware 6 | . . . . . 8 14 15 8 Energy Gun 5 | . 13 14 10 . 4 2 6 1 Energy Cannon 4 | . . . 3 10 8 5 . . Ballistic Gun 7 | . 14 14 13 14 5 2 . . Ballistic Cannon 1 | . . . . . 3 3 . . Naked Turns 10 | . . . . . . . . 10 Heaviest Build 41 | 13 16 13 41 23 37 37 10 9 Greatest Support 38 | 10 10 10 20 20 22 38 12 9 Greatest Overweight (x) 4 | 1 1 1 4 2 3 2 . 2 Average Overweight (x) . | . . 1 1 . 1 . . . Largest Inventory Capacity 12 | 6 6 6 12 6 6 6 4 4 Average Capacity 5 | 5 6 6 6 6 6 5 4 4 Most Carried 7 | 4 6 6 7 6 6 6 4 4 Average Carried 5 | 2 5 6 5 5 5 4 4 3 Final Capacity 6 | 6 6 6 6 6 6 4 4 4 Final Carried 6 | 4 6 6 6 6 6 4 4 4 Class Distribution -------------------- 61% | Mutant 22% | Hacker-Mutant 10% | Skirmisher 5% | Hacker-Skirmisher Dominant Class ---------------- Mutant | -10/Materials Mutant | -10/Mines Mutant | -10/Exiles Mutant | -9/Mines Mutant | -8/Materials Hacker-Mutant | -7/Factory Hacker-Mutant | -7/Waste Hacker-Mutant | -7/Factory Resources | -11 -10 -10 -10 -9 -8 -7 -7 -7 ----------- Run | Scr Mat Min Exi Min Mat Fac Was Fac Matter Collected 1169 | 222 264 20 . 179 283 96 . 105 Remotely . | . . . . . . . . . Salvage Created 1512 | . 411 90 . 101 548 323 . 39 Parts 82 | . 27 4 . 4 26 13 . 8 Haulers Intercepted 1 | . 1 . . . . . . . Recyclers Shooed 1 | . 1 . . . . . . . Parts Field Recycled . | . . . . . . . . . Retrieved Matter . | . . . . . . . . . Parts Self-Destructed . | . . . . . . . . . Prevented . | . . . . . . . . . Kills | -11 -10 -10 -10 -9 -8 -7 -7 -7 ------- Run | Scr Mat Min Exi Min Mat Fac Was Fac Combat Hostiles Destroyed 41 | . 14 2 . 3 13 6 . 3 Guns 27 | . 14 2 . 2 8 1 . . Cannons 5 | . . . . 1 1 3 . . AOE 8 | . . . . . 3 2 . 3 Classes Destroyed 8 | . 3 . . . 2 3 . . Builder 1 | . . . . . 1 . . . Hauler 1 | . 1 . . . . . . . Operator 1 | . . . . . . 1 . . Swarmer 15 | . 9 . . . 3 . . 3 Grunt 17 | . 5 2 . 3 4 3 . . Sentry 7 | . . . . . 6 1 . . Hunter 1 | . . . . . . 1 . . Programmer 1 | . . . . . . 1 . . Best Kill Streak 5 | . 4 2 . 1 3 5 . 3 Combat Bots Only 5 | . 4 2 . 1 3 5 . 3 Max Kills in Single Turn 3 | . 1 1 . 1 3 3 . 3 Gunslinging . | . . . . . . . . . Exploded 3 | . . . . . 3 2 . 3 Melee . | . . . . . . . . . Uniques/NPCs Destroyed . | . . . . . . . . . Combat | -11 -10 -10 -10 -9 -8 -7 -7 -7 -------- Run | Scr Mat Min Exi Min Mat Fac Was Fac Damage Taken 3910 | . 487 141 . 331 710 807 105 1329 Core 1023 | . 109 . . 55 159 47 . 653 Absorbed by Shields . | . . . . . . . . . Core Remaining (%) 68 | 100 . . . 34 71 . . . Volleys Fired 149 | . 49 8 . 27 44 18 . 3 Largest 3 | . 2 2 . 2 2 3 . 1 Hottest 177 | . 70 70 . 120 148 177 . 39 Shots Fired 255 | . 95 16 . 34 83 24 . 3 Gun 235 | . 95 16 . 31 74 17 . 2 Cannon 19 | . . . . 3 9 7 . . Launcher 1 | . . . . . . . . 1 Special . | . . . . . . . . . Kinetic 132 | . 49 8 . 24 39 12 . . Thermal 107 | . 32 8 . 10 44 11 . 2 Explosive 1 | . . . . . . . . 1 Electromagnetic 15 | . 14 . . . . 1 . . Robot Hit Streak 23 | . 11 8 . 20 23 5 . . Robot Miss Streak 7 | . 3 3 . 2 2 7 . 3 Penetration Max . | . . . . . . . . . Secondary Targets 3 | . 3 . . . . . . . Max Gunslinging Chain 1 | . 1 . . . . . . . Shots Hit Robots 175 | . 62 12 . 28 56 17 . . Core Hits 80 | . 24 7 . 6 22 18 . 3 Critical Hits 2 | . . . . . 1 1 . . Critical Kills . | . . . . . . . . . Critical Parts Destroyed 2 | . . . . . 1 1 . . Melee Attacks . | . . . . . . . . . Impact . | . . . . . . . . . Slashing . | . . . . . . . . . Piercing . | . . . . . . . . . Sneak Attacks . | . . . . . . . . . Combat Hostiles . | . . . . . . . . . Follow-up Attacks . | . . . . . . . . . Damage Inflicted 4158 | . 781 134 . 591 1333 1124 . 195 Guns 2617 | . 781 134 . 490 985 227 . . Cannons 805 | . . . . 101 169 535 . . Explosions 736 | . . . . . 179 362 . 195 Melee . | . . . . . . . . . Ramming . | . . . . . . . . . Kinetic 1384 | . 290 47 . 434 481 132 . . Thermal 2384 | . 326 87 . 157 852 962 . . Explosive 195 | . . . . . . . . 195 Electromagnetic 195 | . 165 . . . . 30 . . Impact . | . . . . . . . . . Slashing . | . . . . . . . . . Piercing . | . . . . . . . . . Highest Corruption 5 | . . . . . . 1 1 5 Average Corruption 3 | . . . . . . 1 1 3 Corruption Purged . | . . . . . . . . . Effects 21 | . . . . . . . . 21 Message Errors 6 | . . . . . . . . 6 Matter Fused 4 | . . . . . . . . 4 Heat Flow Errors 1 | . . . . . . . . 1 Energy Discharges 5 | . . . . . . . . 5 Data Loss (minor) 3 | . . . . . . . . 3 Data Loss (major) 2 | . . . . . . . . 2 Overload Shots . | . . . . . . . . . Overflow Damage 112 | . . . . 28 . 78 . 6 Projectiles 106 | . . . . 28 . 78 . . Explosions 6 | . . . . . . . . 6 Melee . | . . . . . . . . . Knockbacks . | . . . . . . . . . Impact . | . . . . . . . . . Kinetic . | . . . . . . . . . Secondary . | . . . . . . . . . Self-Inflicted Damage 335 | . . . . . 96 51 . 188 Shots 6 | . . . . . 2 1 . 3 Rammed . | . . . . . . . . . Targets Rammed . | . . . . . . . . . Kicked . | . . . . . . . . . Crushed . | . . . . . . . . . Highest Temperature 306 | . 123 198 . 228 306 102 . 268 Average Temperature 77 | . 37 104 . 82 101 39 . 133 Received Heat Transfer 945 | . 150 78 . 186 252 93 . 186 Effects 3 | . . . . . 3 . . . Interference 3 | . . . . . 3 . . . Siege Activations . | . . . . . . . . . Robots Corrupted . | . . . . . . . . . Combat Hostiles . | . . . . . . . . . Parts Fried . | . . . . . . . . . Impact Corruptions . | . . . . . . . . . Robots Melted 1 | . . . . . 1 . . . Combat Hostiles 1 | . . . . . 1 . . . Parts Melted 8 | . 1 . . . 4 3 . . Heat Transferred 3862 | . 880 259 . 365 1553 805 . . Parts Sabotaged . | . . . . . . . . . Parts Stolen . | . . . . . . . . . Parts Stripped . | . . . . . . . . . Power Chain Reactions . | . . . . . . . . . Missiles Intercepted . | . . . . . . . . . Alert | -11 -10 -10 -10 -9 -8 -7 -7 -7 ------- Run | Scr Mat Min Exi Min Mat Fac Was Fac Peak Influence 624 | . 237 142 . 80 391 624 123 175 Initial 123 | . . 92 . . 31 62 123 61 Average 134 | . 75 133 . 36 179 280 112 73 Maximum Alert Level 2 | . 1 . . . 1 2 . . Low Security (%) 79 | 100 82 100 . 100 56 59 100 100 Level 1 13 | . 17 . . . 43 3 . . Level 2 7 | . . . . . . 36 . . Level 3 . | . . . . . . . . . Level 4 . | . . . . . . . . . Level 5 . | . . . . . . . . . High Security . | . . . . . . . . . Max Security . | . . . . . . . . . Squads Dispatched 13 | . 4 . . . 2 3 . 4 Investigation 2 | . . . . . . 1 . 1 Extermination 2 | . . . . . . 1 . 1 Reinforcement 8 | . 4 . . . 1 1 . 2 Assault . | . . . . . . . . . Garrison 1 | . . . . . 1 . . . Intercept . | . . . . . . . . . Construction Impeded . | . . . . . . . . . Haulers Reinforced . | . . . . . . . . . Stealth | -11 -10 -10 -10 -9 -8 -7 -7 -7 --------- Run | Scr Mat Min Exi Min Mat Fac Was Fac Distress Signals 5 | . 1 . . . 4 . . . Communications Jammed 4 | . . . . . 4 . . . Distress Signals 2 | . . . . . 2 . . . Times Spotted 103 | . 23 2 . 9 32 11 6 20 Peak Tracking Total 7 | . 5 2 . 3 6 3 6 7 Tactical Retreats 11 | . 2 . . 5 2 . . 2 Traps | -11 -10 -10 -10 -9 -8 -7 -7 -7 ------- Run | Scr Mat Min Exi Min Mat Fac Was Fac Traps Triggered 5 | . . . . . . 3 . 2 Indirectly . | . . . . . . . . . Trap Hack Attempts . | . . . . . . . . . Triggered . | . . . . . . . . . Disarmed . | . . . . . . . . . Reprogrammed . | . . . . . . . . . Reused . | . . . . . . . . . Traps Extracted . | . . . . . . . . . Installed . | . . . . . . . . . Triggered . | . . . . . . . . . Machines | -11 -10 -10 -10 -9 -8 -7 -7 -7 ---------- Run | Scr Mat Min Exi Min Mat Fac Was Fac Machines Disabled 10 | . 1 . . . 1 6 . 2 Max in Single Turn 5 | . 1 . . . 1 5 . 2 Machines Sabotaged . | . . . . . . . . . Garrisons Compromised . | . . . . . . . . . Overloaded Fab Kills . | . . . . . . . . . Fab Network Shutdowns 1 | . . . . . . 1 . . Hacking | -11 -10 -10 -10 -9 -8 -7 -7 -7 --------- Run | Scr Mat Min Exi Min Mat Fac Was Fac Machines Accessed 22 | . 2 . . 1 9 5 . 5 Terminals 15 | . 2 . . . 7 4 . 2 Fabricators 2 | . . . . . . 1 . 1 Repair Stations 2 | . . . . . 1 . . 1 Recycling Units . | . . . . . . . . . Scanalyzers . | . . . . . . . . . Garrison Access 2 | . . . . . 1 . . 1 Total Hacks 59 | . 8 . . 1 26 12 . 12 Successful 36 | . 3 . . 1 18 9 . 5 Failed 23 | . 5 . . . 8 3 . 7 Catastrophic . | . . . . . . . . . Database Lockouts . | . . . . . . . . . Manual 38 | . 6 . 3 . 16 7 . 6 Terminals 38 | . 8 . . . 18 9 . 3 Fabricators 7 | . . . . . . 3 . 4 Repair Stations 5 | . . . . . 2 . . 3 Recycling Units . | . . . . . . . . . Scanalyzers . | . . . . . . . . . Garrison Access 8 | . . . . . 6 . . 2 Terminal Hacks 13 | . 2 . . 1 7 3 . . Record 1 | . . . . . . 1 . . Robot Analysis 2 | . . . . . 1 1 . . Open Door 1 | . . . . 1 . . . . Terminal Index 1 | . . . . . 1 . . . Unreport Threat 4 | . 1 . . . 2 1 . . Dispatch Records 1 | . . . . . 1 . . . Maintenance Status 1 | . . . . . 1 . . . Recall Investigation 1 | . 1 . . . . . . . Registered Components 1 | . . . . . 1 . . . Fabricator Hacks 3 | . . . . . . 2 . 1 Network Status 1 | . . . . . . 1 . . Build 2 | . . . . . . 1 . 1 Repair Station Hacks 5 | . . . . . 2 . . 3 Scan Component 2 | . . . . . 1 . . 1 Repair 2 | . . . . . 1 . . 1 Refit 1 | . . . . . . . . 1 Recycling Unit Hacks . | . . . . . . . . . Scanalyzer . | . . . . . . . . . Garrison Access Hacks 1 | . . . . . 1 . . . Coupler Status 1 | . . . . . 1 . . . Unauthorized Hacks 14 | . 1 . . . 8 4 . 1 Terminals 10 | . 1 . . . 6 3 . . Botnet 9 | . 1 . . . 5 3 . . Operators 1 | . . . . . 1 . . . Fabricators 1 | . . . . . . 1 . . Download 1 | . . . . . . 1 . . Repair Stations . | . . . . . . . . . Recycling Units . | . . . . . . . . . Scanalyzers . | . . . . . . . . . Garrison Access 3 | . . . . . 2 . . 1 Reprogram 2 | . . . . . 1 . . 1 Watchers 1 | . . . . . 1 . . . Data Cores Recovered . | . . . . . . . . . Used . | . . . . . . . . . Hacking Detections 18 | . 2 . . . 7 4 . 5 Full Trace Events 1 | . . . . . . . . 1 Feedback Events . | . . . . . . . . . Feedback Blocked . | . . . . . . . . . Robot Schematics Acquired 1 | . . . . . . 1 . . Robots Built 3 | . . . . . . . . 3 Matter 405 | . . . . . . 153 . 252 Time 107 | . . . . . . 40 . 67 Total Robot Build Rating 12 | . . . . . . . . 12 Part Schematics Acquired . | . . . . . . . . . Parts Built . | . . . . . . . . . Matter . | . . . . . . . . . Time . | . . . . . . . . . Total Part Build Rating . | . . . . . . . . . Parts Repaired 2 | . . . . . 1 . . 1 Time 64 | . . . . . 26 . . 38 Parts Recycled . | . . . . . . . . . Recycled Matter . | . . . . . . . . . Retrieved Matter . | . . . . . . . . . Retrieved Components . | . . . . . . . . . Parts Scanalyzed . | . . . . . . . . . Part Schematics Acquired . | . . . . . . . . . Parts Damaged . | . . . . . . . . . Bothacking | -11 -10 -10 -10 -9 -8 -7 -7 -7 ------------ Run | Scr Mat Min Exi Min Mat Fac Was Fac Used RIF Installer . | . . . . . . . . . Robots Hacked . | . . . . . . . . . Non-combat . | . . . . . . . . . Combat . | . . . . . . . . . Robot Hacks Applied . | . . . . . . . . . Relay Couplers Released . | . . . . . . . . . Robots Rewired . | . . . . . . . . . Allies Hacked 4 | . . . . . . . . 4 Hacks Repelled . | . . . . . . . . . Allies | -11 -10 -10 -10 -9 -8 -7 -7 -7 -------- Run | Scr Mat Min Exi Min Mat Fac Was Fac Total Allies 3 | . . . . . . . . 3 Largest Group 3 | . . . . . . . . 3 Highest-Rated Group 90 | . . . . . . . . 90 Highest-Rated Ally 30 | . . . . . . . . 30 Total Orders 1 | . . . . . . . . 1 GUARD 1 | . . . . . . . . 1 Ally Attacks 20 | . . . . . . . . 20 Total Damage 491 | . . . . . . . . 491 Kills 4 | . . . . . . . . 4 Allies Corrupted 2 | . . . . . . . . 2 Allies Melted . | . . . . . . . . . Intel | -11 -10 -10 -10 -9 -8 -7 -7 -7 ------- Run | Scr Mat Min Exi Min Mat Fac Was Fac Robot Analysis Total 2 | . . . . . 1 1 . . Derelict Logs Recovered 1 | . . . . 1 . . . . Drone Launches . | . . . . . . . . . Drone Recoveries . | . . . . . . . . . Exploration | -11 -10 -10 -10 -9 -8 -7 -7 -7 ------------- Run | Scr Mat Min Exi Min Mat Fac Was Fac Turns Passed 5370 | 55 727 82 520 779 1134 968 70 1035 Spaces Moved 3914 | 50 421 63 555 490 703 847 97 688 Core 355 | 3 . . . . . . 31 321 Treads 240 | . . . 5 211 23 1 . . Legs . | . . . . . . . . . Wheels 2756 | 47 421 63 550 279 680 716 . . Hover 265 | . . . . . . . . 265 Flight 298 | . . . . . . 130 66 102 Fastest Speed 35 | 50 80 90 80 90 100 85 50 35 Average Speed 94 | 85 88 90 90 124 112 99 71 56 Slowest Speed 180 | 90 90 90 160 180 180 165 85 150 Overloaded Moves . | . . . . . . . . . Propulsion Burnouts . | . . . . . . . . . Robots Hopped . | . . . . . . . . . Cave-ins Triggered . | . . . . . . . . . Exploration Rate (%) 45 | 3 47 17 92 82 50 23 73 18 Regions Visited 8 Branch Regions 3 Pre-discovered Areas . | . . . . . . . . . Known Exits Taken . | . . . . . . . . . Unknown Exits Taken 6 | 1 1 1 1 1 1 . . . Scrap Searched 1 | . . . . 1 . . . . Spaces Dug . | . . . . . . . . . Terrain Destroyed 130 | . . . . . 24 64 . 42 Melee . | . . . . . . . . . Projectile 7 | . . . . . 6 1 . . AOE 123 | . . . . . 18 63 . 42 Terrain Rammed . | . . . . . . . . . Walls Destroyed . | . . . . . . . . . Machines Disabled . | . . . . . . . . . Actions | -11 -10 -10 -10 -9 -8 -7 -7 -7 --------- Run | Scr Mat Min Exi Min Mat Fac Was Fac Total 5342 | 59 684 73 571 627 959 941 96 1332 Wait 1128 | . 193 1 . 103 170 44 . 617 Move 3907 | 49 420 62 554 489 702 847 96 688 Hop . | . . . . . . . . . Pick Up 23 | 4 3 . 2 1 6 5 . 2 Fast Attach 39 | 6 3 1 4 1 10 4 . 10 Attach 16 | . 1 . 1 1 4 6 . 3 Detach 11 | . . . 1 . 3 4 . 3 Swap 21 | . 7 . 2 3 6 3 . . Drop 48 | . 8 1 7 2 14 10 . 6 Fire 149 | . 49 8 . 27 44 18 . 3 Melee . | . . . . . . . . . Ram . | . . . . . . . . . Kick . | . . . . . . . . . Crush . | . . . . . . . . . Escape Stasis . | . . . . . . . . . Rewire . | . . . . . . . . . Trap . | . . . . . . . . . Miscellaneous . | . . . . . . . . . Route ------- -11/Scrapyard -10/Materials -10/Mines -10/Exiles (discovered 2 exits: *Min x2) -9/Mines (discovered 2 exits: *Mat x2) -8/Materials -7/Factory -7/Waste -7/Factory (discovered 1 exit: [*Fac]) History --------- Turn | Location | Event 19 | -11/Scrapyard | Discovered new exit (range 16) 56 | -11/Scrapyard | Entered Materials 305 | -10/Materials | Build established: Mutant 771 | -10/Materials | Discovered new exit (range 11) 783 | -10/Materials | Entered Mines 860 | -10/Mines | Deemed a non-threat by the Exiles lab entrance 860 | -10/Mines | Discovered new exit (range 5) 865 | -10/Mines | Entered Exiles 888 | -10/Exiles | Discovered new exit (range 14) 918 | -10/Exiles | Met 8R-AWN 933 | -10/Exiles | Met EX-HEX 1017 | -10/Exiles | Met EX-DEC 1045 | -10/Exiles | Visited The Gauntlet 1170 | -10/Exiles | Met EX-BIN 1223 | -10/Exiles | Aligned with FarCom system 1224 | -10/Exiles | Given EX-Vault access code 1247 | -10/Exiles | Opened EX-Vault 1251 | -10/Exiles | Found Prototype Processor 1251 | -10/Exiles | Identified 0b10 Alert Chip 1254 | -10/Exiles | Found Prototype Energy Cannon 1254 | -10/Exiles | Identified Gui. Plasma Cannon 1259 | -10/Exiles | Found Prototype Energy Cannon 1285 | -10/Exiles | Warned to stay clear of 0b10 Research branches 1374 | -10/Exiles | Discovered new exit (range 14) 1385 | -10/Exiles | Stole three prototypes: 0b10 Alert Chip, Gui. Plasma Cannon, YOLO Cannon 1385 | -10/Exiles | Entered Mines 1479 | -9/Mines | A weapon hastily lodged in a ceiling crevice suddenly fell to the ground 1691 | -9/Mines | Met a Derelict who couldn't figure out how to use a Trap Extractor 1798 | -9/Mines | Core integrity fell below 50% 1835 | -9/Mines | Found a hidden stash of uninstalled traps 1881 | -9/Mines | Discovered new exit (range 6) 1936 | -9/Mines | Received a Rocket Launcher from a helpful Derelict 1964 | -9/Mines | Discovered new exit (range 10) 2076 | -9/Mines | Learned Materials terminal intel 2164 | -9/Mines | Entered Materials 2164 | -8/Materials | Evolved 4 slots: Propulsion x1, Utility x2, Weapon x1 2165 | -8/Materials | Loaded intel: 12 terminal locations 2238 | -8/Materials | Repaired Lgt. Treads 2595 | -8/Materials | Garrison activated, responded to threat 2871 | -8/Materials | Identified YOLO Cannon 3139 | -8/Materials | Build established: Skirmisher 3178 | -8/Materials | Discovered new exit (range 13) 3298 | -8/Materials | Entered Factory 3298 | -7/Factory | Evolved 2 slots: Propulsion x1, Utility x1 3300 | -7/Factory | FarCom data flow suspended 3709 | -7/Factory | Build established: Hacker-Mutant 3883 | -7/Factory | Local fabrication network quarantined 4266 | -7/Factory | Sucked down chute 4266 | -7/Factory | Entered Waste 4274 | -7/Waste | Spotted C-40 Crusher 4274 | -7/Waste | Spotted C-40 Crusher 4305 | -7/Waste | Spotted C-40 Crusher 4312 | -7/Waste | Spotted C-40 Crusher 4315 | -7/Waste | Crushed by Compactor (1 part destroyed, 2 dropped) 4318 | -7/Waste | Spotted C-40 Crusher 4318 | -7/Waste | Spotted C-40 Crusher 4320 | -7/Waste | Crushed by Compactor (1 part destroyed, 1 dropped) 4331 | -7/Waste | Discovered new exit (range 10) 4336 | -7/Waste | Entered Factory 4351 | -7/Factory | Lost 5 parts (1p2n2u) 4590 | -7/Factory | Repaired Transmission Jammer 4943 | -7/Factory | Core integrity fell below 50% 4973 | -7/Factory | Lost 9 parts (3n4u2w) 4975 | -7/Factory | Fabricated L-41 Fighter (x3) 5194 | -7/Factory | Build established: Mutant 5360 | -7/Factory | Core integrity fell below 20% 5370 | -7/Factory | Discovered new exit (range 12) 5371 | -7/Factory | Destroyed by Y-54 Guardian with Flak Gun Last Messages --------------- 05245_ System corrupted: Component data lost. 05247_ U-05 Engineer lays Concrete. 05280_ Connecting with Terminal... 05280_ ALERT: Suspicious activity at Terminal F018. Dispatching Investigation squad. 05293_ FKXBVEZGG5NQ<2M 05306_ Fighter 4b triggered Shock Trap. 05306_ The floor emits a surge of raw power. 05307_ Fighter 4b system terminally corrupted. 05307_ Fighter 4a triggered Shock Trap. 05307_ The floor emits a surge of raw power. 05318_ System corrupted: Energy discharge (-31). 05332_ Airjet destroyed. 05333_ System corrupted: Component data lost. 05339_ K-01 Serf cleans the Fusion Modulator. 05348_ System corrupted: Matter fused (-5). 05361_ Lgt. Angular Momentum Engine destroyed. 05366_ QNV EFZVCDS# Z:FA%VVLO&3E21ZZB 05370_ EXIT=FOUND [Achievement: This Is Interesting...] Map ----- +----------------------------------------------------+ | | | | | | | | | | | | | | | | | | | | | | | | | | | | | | | | | ????????????????????###################??????????? | | ????????????????????# #??????????? | | ????????????????????# """"" """"" #??????????? | | ????????????????????# """"" """"" #??????????? | | ????????????????????# """ """ #??????????? | | ????????????????????# #??????????? | | ????????????????????# [ #??????????? | | ????????????????????# #??????????? | | ?????????????????############+###################+ | | ?????????? @ | | ?????????? Y | | ?????????? k ^ gg """ "" | | ??????????? g g "R "" | | ??????????? """ "" | | ????????????######## ################ | | ???????????????????# ?########## ##?# """ "" | | ???????????????????# ?# #?# """ "" | | ???????????????????# ?# """ #?# """ "" | | ???????????????????# ?# """ #?# | | ???????????????????+ ?# """ #?# """ "" | | ???????????????????# < ?# ==/ "" ### """ "" | | ???????????????????# ??# =// "" + """ "" | | ???????????????????# ??# =// ### | | ?????????????????????###??# #?# | | ??????????????????????????# #?###### | | ??????????????????????????# #???????#### | | ??????????????????????????# ""T"" ] #??????????? | | ????????????????########### """"" #??????????? | | ????????????????# # ##########?? | | ????????????????# ###+########## #?? | | ????????????????# ^ ### | | ????????????????# % | | ??????????" " " / | | ??????????" " " # | +----------------------------------------------------+ Best States ------------- Heat Dissipation 34 Energy Generation 18 Energy Capacity 250 Matter Stores 300 Matter Capacity 300 Sight Range 16 Robot Scan Range 10 Terrain Scan Density 10 Jamming Range 8 Additional Mass Support 6 Armor Coverage 150 Evasion (%) 63 Targeting Accuracy 12 Recoil Reduction 2 Offensive Hacking 20 Item Schematics ----------------- None Robot Schematics ------------------ R-06 Scavenger | -7/Factory | Downloaded Fabricated ------------ L-41 Fighter | x3 | -7/Factory | Preloaded Alien Tech Used ----------------- None Achievements -------------- My Command Is Your Wish This Is Interesting... Challenges ------------ None Game ------ Seed HoverOmegaFirepult Manual? 0 Play Time 01:26:52 Cumulative 31.1 hours Start 2021.07.19 @ 02:05:01 End 2021.07.20 @ 17:46:59 Sessions 5 Manual Loads 0 Difficulty Rogue Special Mode None Game No. 29 Rogue 29 Adventurer 0 Explorer 0 Win Type - Total 0 Types 0/0/0/0/0/0/0/0/0 Lore% 25 Gallery% 29 Achievement% 24 Wizard Run 0 Options --------- ASCII 0 Keyboard 1 Movement Numpad Keybinds 0 Fullscreen 2 Font 36/X11 Map View 76x50 Tactical HUD 1 Map Filters NONE Filters NONE Steam 1 RUN: 112b8037-6189-4da2-bfe4-8ae3f40b4d6b